bitfinex/quotes_SOLUSD_20250626
["timestamp","ask_amount","ask_price","bid_price","bid_amount"]
[1750955524562,0.42648471,142.43,142.41,0.02]
[1750955525649,0.28432314,142.43,142.41,0.02]
[1750955525968,0.14216157,142.43,142.41,0.02]
[1750955526452,28.96,142.45,142.41,0.02]
[1750955527146,0.28432314,142.44,142.41,0.02]
[1750955527376,0.28432314,142.44,142.42,1.1]
[1750955528867,28.96,142.45,142.42,1.1]
[1750955529069,1.5298,142.47,142.42,1.1]
[1750955529070,0.14216157,142.47,142.42,1.1]
[1750955529271,0.28432314,142.47,142.42,90.5]
[1750955529660,0.14216157,142.47,142.42,90.5]
[1750955529866,28.96,142.49,142.42,90.5]
[1750955530381,0.14216157,142.48,142.42,90.5]
[1750955530562,0.14216157,142.48,142.42,97.2781837]
[1750955532970,0.14216157,142.48,142.42,90.5]
[1750955533494,0.14216157,142.48,142.42,97.2781837]
[1750955533790,0.14216157,142.48,142.42,90.5]
[1750955534486,7.16079171,142.48,142.42,90.5]
[1750955535175,0.14216157,142.47,142.42,90.5]
[1750955535386,7.16079171,142.48,142.42,90.5]
[1750955535557,0.28432314,142.48,142.42,90.5]
[1750955535762,0.14216157,142.48,142.42,90.5]
[1750955536169,7.16072799,142.48,142.42,90.5]
[1750955536364,0.14216157,142.47,142.42,90.5]
[1750955537687,0.14216157,142.47,142.42,1.1]
[1750955538390,7.16130386,142.47,142.42,1.1]
[1750955539268,0.14216157,142.46,142.42,1.1]
[1750955540585,7.16203253,142.46,142.42,1.1]
[1750955540971,0.14216157,142.44,142.42,1.1]
[1750955542054,0.14216157,142.47,142.42,1.1]
[1750955542257,5.31731744,142.47,142.42,1.1]
[1750955542477,12.33636041,142.47,142.42,1.1]
[1750955542894,12.33636041,142.47,142.41,0.02]
[1750955543285,5.17515587,142.46,142.41,0.02]
[1750955544387,5.17515587,142.45,142.41,0.02]
[1750955544680,5.17515587,142.46,142.41,0.02]
[1750955544893,5.17515587,142.45,142.41,0.02]
[1750955545102,5.17515587,142.46,142.41,0.02]
[1750955545396,5.17515587,142.45,142.41,0.02]
[1750955545602,0.28432314,142.43,142.41,0.02]
[1750955545762,5.17515587,142.46,142.41,0.02]
[1750955545957,5.17515587,142.45,142.41,89.42]
[1750955546183,5.17515587,142.46,142.44,6.7781837]
[1750955546386,5.17515587,142.47,142.45,6.7781837]
[1750955546672,5.17515587,142.51,142.46,7.48013512]
[1750955546996,5.17515587,142.52,142.48,6.7781837]
[1750955547184,5.17515587,142.51,142.48,6.7781837]
[1750955547369,5.17515587,142.52,142.48,6.7781837]
[1750955549492,0.32432314,142.53,142.48,6.7781837]
[1750955549662,5.49947901,142.53,142.48,6.7781837]
[1750955549865,0.04,142.53,142.48,6.7781837]
[1750955550067,0.28432314,142.52,142.48,6.7781837]
[1750955551674,0.28432314,142.52,142.47,6.7781837]
[1750955551877,0.28432314,142.52,142.46,96.1781837]
[1750955553305,0.32432314,142.53,142.46,96.1781837]
[1750955553777,7.34045101,142.53,142.46,96.1781837]
[1750955553971,12.51560688,142.53,142.46,89.4]
[1750955554192,0.28432314,142.51,142.46,89.4]
[1750955554702,0.28432314,142.51,142.46,96.1781837]
[1750955554907,0.28432314,142.51,142.47,6.7781837]
[1750955555472,0.28432314,142.51,142.46,6.7781837]
[1750955556297,7.34061848,142.53,142.46,6.7781837]
[1750955556501,7.34061848,142.53,142.44,90.10204998]
[1750955556502,12.51577435,142.53,142.44,96.1781837]
[1750955556798,12.51577435,142.53,142.44,89.4]
[1750955557099,12.51577435,142.53,142.45,6.7781837]
[1750955557297,7.34061848,142.53,142.45,6.7781837]
[1750955557684,0.14216157,142.52,142.45,89.4]
[1750955557885,0.14216157,142.5,142.45,89.4]
[1750955559002,7.01803635,142.49,142.45,89.4]
[1750955559181,0.28432314,142.48,142.45,89.4]
[1750955559382,0.28432314,142.48,142.42,103.8548]
[1750955560508,7.30286612,142.48,142.42,97.2852]
[1750955560804,0.28432314,142.48,142.42,97.2852]
[1750955561099,7.30286233,142.48,142.42,97.2852]
[1750955562297,7.30286233,142.48,142.42,95.72]
[1750955562601,0.42648471,142.48,142.42,95.72]
[1750955562984,0.28432314,142.48,142.42,95.72]
[1750955563905,0.28432314,142.49,142.42,95.72]
[1750955564311,0.28432314,142.49,142.42,109.51960192]
[1750955564534,34.13515587,142.51,142.44,6.7781837]
[1750955564814,0.28432314,142.49,142.44,96.1781837]
[1750955565814,0.14216157,142.49,142.44,96.1781837]
[1750955566698,0.28432314,142.5,142.44,96.1781837]
[1750955567417,0.28432314,142.5,142.45,6.7781837]
[1750955567621,0.28432314,142.5,142.47,6.7781837]
[1750955567995,0.14216157,142.5,142.47,6.7781837]
[1750955569297,0.18216157,142.53,142.47,6.7781837]
[1750955569706,0.18216157,142.53,142.48,6.7781837]
[1750955570189,0.04,142.53,142.48,6.7781837]
[1750955571124,0.04,142.53,142.49,6.7781837]
[1750955571327,0.04,142.53,142.48,6.7781837]
[1750955571724,0.04,142.53,142.46,6.7781837]
[1750955572021,0.04,142.53,142.47,6.7781837]
[1750955572222,0.04,142.53,142.45,96.41999759]
[1750955572404,0.04,142.53,142.46,6.7781837]
[1750955573327,0.04,142.53,142.46,96.1781837]
[1750955574421,0.04,142.53,142.47,6.7781837]
[1750955575527,0.04,142.53,142.48,6.7781837]
[1750955576614,0.04,142.53,142.49,6.7781837]
[1750955577728,0.04,142.53,142.51,6.7781837]
[1750955577934,0.04,142.53,142.51,96.1781837]
[1750955578910,0.04,142.53,142.52,6.7781837]
[1750955579227,0.04,142.53,142.52,114.96999413]
[1750955581201,0.04,142.53,142.52,96.1781837]
[1750955582907,0.04,142.53,142.52,114.96999413]
[1750955583519,0.04,142.53,142.52,121.9865532]
[1750955583936,0.04,142.53,142.52,122.6882091]
[1750955585431,0.04,142.53,142.52,115.67165003]
[1750955585825,0.04,142.53,142.52,122.6882091]
[1750955593821,0.04,142.58,142.54,18.79181043]
[1750955594034,0.04,142.58,142.55,6.7781837]
[1750955594540,0.04,142.58,142.56,6.7781837]
[1750955594736,0.04,142.58,142.57,6.7781837]
[1750955595039,0.04,142.58,142.57,108.15181043]
[1750955595338,0.04,142.58,142.57,114.92999413]
[1750955596144,0.04,142.58,142.57,96.1381837]
[1750955598238,0.04,142.58,142.57,89.36]
[1750955599240,0.04,142.58,142.57,96.1381837]
[1750955600346,0.04,142.58,142.57,89.36]
[1750955602143,0.04,142.58,142.57,96.1381837]
[1750955602318,0.04,142.58,142.57,122.64550229]
[1750955602626,0.04,142.59,142.58,96.47576796]
[1750955602946,0.04,142.59,142.58,103.25395166]
[1750955603828,0.04,142.59,142.58,103.95531229]
[1750955604642,0.04,142.59,142.58,269.80496115]
[1750955604838,0.04,142.59,142.58,269.10360052]
[1750955605045,0.04,142.59,142.58,298.02360052]
[1750955605623,0.04,142.64,142.59,18.79181043]
[1750955605823,0.04,142.64,142.63,25.42783256]
[1750955606039,0.04,142.64,142.63,114.88999413]
[1750955606241,0.04,142.64,142.63,115.5911089]
[1750955606430,0.04,142.64,142.63,271.1614926]
[1750955606626,0.04,142.64,142.63,277.47152555]
[1750955606947,0.04,142.64,142.63,270.69334185]
[1750955608025,0.04,142.64,142.63,263.68219413]
[1750955608224,0.04,142.64,142.63,262.08999413]
[1750955608443,0.04,142.64,142.63,89.32]
[1750955608626,0.04,142.64,142.6,6.32]
[1750955608829,0.04,142.64,142.61,6.7781837]
[1750955610540,0.04,142.64,142.6,13.0981837]
[1750955611428,0.04,142.64,142.6,6.32]
[1750955614150,0.04,142.64,142.61,6.7781837]
[1750955615352,0.04,142.64,142.63,6.7781837]
[1750955615555,0.04,142.64,142.61,114.74783256]
[1750955617555,0.04,142.64,142.62,6.7781837]
[1750955620554,0.04,142.64,142.62,96.0981837]
[1750955620935,0.04,142.64,142.62,89.32]
[1750955621255,0.04,142.64,142.63,6.7781837]
[1750955621851,0.04,142.64,142.63,25.56999413]
[1750955622038,0.04,142.64,142.63,115.5911089]
[1750955622236,0.04,142.64,142.63,122.60225662]
[1750955623155,0.04,142.64,142.63,115.5911089]
[1750955623942,0.04,142.64,142.63,122.60225662]
[1750955625943,0.04,142.64,142.63,115.82407292]
[1750955626261,0.04,142.64,142.63,122.60225662]
[1750955626462,0.04,142.64,142.63,115.44894733]
[1750955628039,0.04,142.64,142.63,115.5911089]
[1750955628748,0.04,142.64,142.63,122.60225662]
[1750955629265,0.04,142.65,142.64,108.07181043]
[1750955629441,0.04,142.65,142.64,121.62817783]
[1750955629838,0.04,142.65,142.64,114.84999413]
[1750955630564,0.04,142.65,142.64,115.55105974]
[1750955630766,0.04,142.65,142.64,122.56171593]
[1750955631338,0.04,142.65,142.64,115.55105974]
[1750955631878,0.04,142.65,142.64,122.56171593]
[1750955632244,0.04,142.65,142.64,269.76171593]
[1750955632443,0.04,142.65,142.64,269.06065032]
[1750955635462,0.04,142.65,142.64,262.04999413]
[1750955638276,0.04,142.65,142.64,114.84999413]
[1750955642949,0.04,142.65,142.64,121.86065032]
[1750955644170,0.04,142.65,142.64,122.56171593]
[1750955646963,0.04,142.65,142.64,115.55105974]
[1750955647777,0.04,142.65,142.64,115.40889817]
[1750955648457,0.04,142.65,142.64,122.56171593]
[1750955648662,0.04,142.65,142.64,115.55105974]
[1750955650980,0.04,142.65,142.64,122.56171593]
[1750955651575,0.04,142.65,142.64,115.78353223]
[1750955651775,0.04,142.65,142.64,115.55105974]
[1750955652077,0.04,142.65,142.64,122.56171593]
[1750955652463,0.04,142.65,142.64,115.55105974]
[1750955652776,0.04,142.65,142.64,122.56171593]
[1750955655579,0.04,142.65,142.64,115.78353223]
[1750955655789,0.04,142.65,142.64,122.56171593]
[1750955656085,0.04,142.65,142.64,269.76171593]
[1750955656263,0.04,142.65,142.64,269.06065032]
[1750955660373,0.04,142.65,142.64,262.04999413]
[1750955660681,0.04,142.65,142.64,243.2581837]
[1750955661865,0.04,142.65,142.64,96.0581837]
[1750955662484,0.04,142.65,142.64,102.3581837]
[1750955662987,0.04,142.65,142.64,128.16065032]
[1750955663967,0.04,142.65,142.64,121.14999413]
[1750955664366,0.04,142.65,142.64,89.28]
[1750955664583,0.04,142.65,142.63,89.28]
[1750955664883,5.23546633,142.64,142.63,89.28]
[1750955666970,5.51978947,142.64,142.63,89.28]
[1750955667373,5.51978947,142.64,142.61,6.3]
[1750955667574,5.23546633,142.63,142.61,6.3]
[1750955668275,0.28432314,142.62,142.61,6.3]
[1750955668459,12.08206223,142.62,142.61,6.3]
[1750955668658,6.85512314,142.62,142.59,7.98752174]
[1750955669060,5.22693909,142.61,142.59,7.98752174]
[1750955669475,6.85512314,142.62,142.59,7.98752174]
[1750955669767,12.08206223,142.62,142.59,7.98752174]
[1750955669967,5.22693909,142.64,142.6,6.7781837]
[1750955670172,5.22693909,142.63,142.6,6.7781837]
[1750955670377,5.22693909,142.64,142.59,6.7781837]
[1750955670576,5.22693909,142.63,142.59,6.7781837]
[1750955670772,5.22693909,142.64,142.59,6.7781837]
[1750955670981,5.22693909,142.63,142.58,96.0781837]
[1750955671187,5.22693909,142.64,142.58,96.0781837]
[1750955671466,0.28432314,142.63,142.58,89.3]
[1750955672283,5.51126223,142.63,142.58,89.3]
[1750955672482,0.28432314,142.63,142.58,89.3]
[1750955672690,5.51126223,142.63,142.58,89.3]
[1750955672892,0.28432314,142.63,142.58,89.3]
[1750955673093,5.51126223,142.63,142.58,89.3]
[1750955673387,0.28432314,142.63,142.58,89.3]
[1750955674388,0.28432314,142.64,142.58,89.3]
[1750955675784,0.28432314,142.64,142.58,96.0781837]
[1750955677390,0.28432314,142.64,142.58,89.3]
[1750955678788,0.28432314,142.64,142.58,96.0781837]
[1750955679299,0.28432314,142.64,142.59,1.1]
[1750955680797,6.6108,142.65,142.59,7.8781837]
[1750955680978,0.04,142.65,142.6,6.7781837]
[1750955681298,0.32432314,142.65,142.6,6.7781837]
[1750955681496,0.18216157,142.65,142.6,6.7781837]
[1750955681675,0.32432314,142.65,142.6,6.7781837]
[1750955681873,0.32432314,142.65,142.59,97.1581837]
[1750955682312,0.32432314,142.65,142.59,90.38]
[1750955683297,0.28432314,142.63,142.59,1.1]
[1750955689412,0.32432314,142.65,142.59,1.1]
[1750955690016,0.04,142.65,142.59,90.38]
[1750955690183,0.32432314,142.65,142.59,90.38]
[1750955693589,0.32432314,142.65,142.59,97.1581837]
[1750955696308,0.32432314,142.65,142.59,90.38]
[1750955699615,0.04,142.65,142.59,97.1581837]
[1750955701412,0.04,142.65,142.59,90.38]
[1750955702414,5.26693909,142.65,142.59,90.38]
[1750955702597,0.04,142.65,142.59,90.38]
[1750955703393,5.26693909,142.65,142.59,90.38]
[1750955703790,5.26693909,142.65,142.59,97.1581837]
[1750955703995,0.04,142.65,142.61,6.7781837]
[1750955704246,0.04,142.65,142.62,6.7781837]
[1750955704395,0.04,142.65,142.62,102.3381837]
[1750955704716,0.04,142.65,142.63,6.7781837]
[1750955705217,0.04,142.65,142.62,95.56]
[1750955705218,0.04,142.65,142.62,102.3381837]
[1750955706832,0.04,142.65,142.62,95.56]
[1750955707511,0.32432314,142.65,142.62,95.56]
[1750955708411,0.04,142.65,142.62,95.56]
[1750955709317,0.04,142.65,142.62,102.3381837]
[1750955709520,5.26701415,142.65,142.63,6.7781837]
[1750955709745,0.04,142.65,142.63,6.7781837]
[1750955710035,5.26701415,142.65,142.63,6.7781837]
[1750955710209,5.26701415,142.65,142.62,95.56]
[1750955710210,0.04,142.65,142.62,102.3381837]
[1750955710406,5.26701415,142.65,142.62,95.56]
[1750955710606,0.32432314,142.65,142.62,95.56]
[1750955710836,5.55133729,142.65,142.62,95.56]
[1750955711021,0.32432314,142.65,142.62,95.56]
[1750955711835,5.55133729,142.65,142.62,95.56]
[1750955712020,0.32432314,142.65,142.62,95.56]
[1750955712426,5.55133729,142.65,142.62,95.56]
[1750955712633,0.32432314,142.65,142.62,95.56]
[1750955713123,5.55133729,142.65,142.62,95.56]
[1750955713316,0.32432314,142.65,142.62,95.56]
[1750955713737,5.55133729,142.65,142.62,95.56]
[1750955713940,0.32432314,142.65,142.62,95.56]
[1750955714338,5.55133729,142.65,142.62,95.56]
[1750955714525,0.32432314,142.65,142.62,95.56]
[1750955714917,5.55133729,142.65,142.62,95.56]
[1750955715138,0.32432314,142.65,142.62,95.56]
[1750955715515,5.55133729,142.65,142.62,95.56]
[1750955715715,0.32432314,142.65,142.62,95.56]
[1750955716222,5.55133729,142.65,142.62,95.56]
[1750955716415,0.32432314,142.65,142.62,95.56]
[1750955716837,5.55133729,142.65,142.62,95.56]
[1750955717032,0.32432314,142.65,142.62,95.56]
[1750955717437,5.55133729,142.65,142.62,95.56]
[1750955717742,0.32432314,142.65,142.62,95.56]
[1750955718142,5.55133729,142.65,142.62,95.56]
[1750955718342,0.32432314,142.65,142.62,95.56]
[1750955718724,5.55133729,142.65,142.62,95.56]
[1750955718927,0.04,142.65,142.62,95.56]
[1750955719346,5.26701415,142.65,142.62,95.56]
[1750955719544,0.04,142.65,142.62,95.56]
[1750955719847,5.26701415,142.65,142.62,95.56]
[1750955720144,0.04,142.65,142.62,95.56]
[1750955720345,5.26701415,142.65,142.62,95.56]
[1750955720639,0.04,142.65,142.62,95.56]
[1750955720837,5.26701415,142.65,142.62,95.56]
[1750955721038,0.04,142.65,142.62,95.56]
[1750955721238,5.26701415,142.65,142.62,95.56]
[1750955721539,0.04,142.65,142.62,95.56]
[1750955721722,5.26701415,142.65,142.62,95.56]
[1750955721918,0.04,142.65,142.62,95.56]
[1750955722124,5.26701415,142.65,142.62,95.56]
[1750955722324,0.04,142.65,142.62,95.56]
[1750955722622,5.26701415,142.65,142.62,95.56]
[1750955722821,0.32432314,142.65,142.62,95.56]
[1750955723034,5.55133729,142.65,142.62,95.56]
[1750955723234,0.28432314,142.63,142.59,90.38]
[1750955723444,0.28432314,142.61,142.59,1.1]
[1750955723645,5.51133729,142.61,142.58,89.3]
[1750955723956,0.28432314,142.61,142.58,89.3]
[1750955724130,0.28432314,142.61,142.58,0.02]
[1750955724325,5.51133729,142.61,142.58,0.02]
[1750955724526,0.28432314,142.61,142.58,0.02]
[1750955724942,5.51133729,142.61,142.58,0.02]
[1750955725133,0.28432314,142.61,142.58,0.02]
[1750955725533,5.51133729,142.61,142.58,0.02]
[1750955725734,0.28432314,142.61,142.58,0.02]
[1750955726142,5.51133729,142.61,142.58,0.02]
[1750955726446,0.28432314,142.61,142.58,0.02]
[1750955726827,5.51133729,142.61,142.58,0.02]
[1750955727127,0.28432314,142.61,142.58,0.02]
[1750955727758,5.51133729,142.61,142.58,0.02]
[1750955728062,0.28432314,142.61,142.58,0.02]
[1750955728240,5.51133729,142.61,142.58,0.02]
[1750955728425,5.22701415,142.6,142.58,0.02]
[1750955728630,0.28432314,142.59,142.58,0.02]
[1750955730167,12.52445181,142.59,142.58,0.02]
[1750955730335,0.28432314,142.59,142.58,0.02]
[1750955730533,5.51133729,142.59,142.58,0.02]
[1750955730949,12.52445181,142.59,142.58,0.02]
[1750955731341,0.28432314,142.59,142.58,0.02]
[1750955731650,18.0834057,142.59,142.58,0.02]
[1750955731957,7.29743766,142.59,142.58,0.02]
[1750955732142,12.66661338,142.59,142.58,0.02]
[1750955732346,32.97546224,142.59,142.58,0.02]
[1750955732839,0.28432314,142.57,142.56,0.02]
[1750955733026,0.14216157,142.56,142.53,0.02]
[1750955733225,0.28432314,142.55,142.53,0.02]
[1750955734537,7.29943738,142.55,142.53,0.02]
[1750955734738,0.28432314,142.55,142.53,0.02]
[1750955735659,0.42648471,142.56,142.53,0.02]
[1750955735830,7.44111758,142.56,142.53,0.02]
[1750955736838,0.28432314,142.54,142.53,0.02]
[1750955741363,29.26648471,142.58,142.53,0.02]
[1750955741564,41.47420587,142.58,142.53,1.12]
[1750955741738,36.28014906,142.58,142.53,1.12]
[1750955745668,39.71794655,142.58,142.53,1.12]
[1750955750350,29.12432314,142.58,142.53,1.12]
[1750955751173,29.12432314,142.58,142.53,7.8981837]
[1750955751340,0.28432314,142.58,142.53,97.1781837]
[1750955751756,0.14216157,142.58,142.53,97.1781837]
[1750955752045,0.28432314,142.58,142.53,90.4]
[1750955752670,7.29804607,142.58,142.53,90.4]
[1750955753051,0.42648471,142.58,142.53,90.4]
[1750955753869,7.44011884,142.58,142.53,90.4]
[1750955754458,0.28432314,142.58,142.53,90.4]
[1750955756473,0.28432314,142.58,142.53,1.12]
[1750955759371,5.48221611,142.58,142.53,1.12]
[1750955761074,0.28432314,142.58,142.53,1.12]
[1750955761374,28.84,142.61,142.54,6.7781837]
[1750955761578,0.28432314,142.6,142.54,6.7781837]
[1750955763856,0.28432314,142.61,142.54,6.7781837]
[1750955764191,5.48510667,142.61,142.54,6.7781837]
[1750955764488,12.49734474,142.61,142.54,6.7781837]
[1750955764685,12.49734474,142.61,142.53,97.1781837]
[1750955764980,0.14216157,142.6,142.53,90.4]
[1750955765493,0.42648471,142.6,142.53,90.4]
[1750955766278,12.64008372,142.6,142.53,90.4]
[1750955766484,7.43930019,142.6,142.53,90.4]
[1750955766688,12.64008372,142.6,142.53,90.4]
[1750955766880,7.43930019,142.6,142.53,90.4]
[1750955767078,12.64008372,142.6,142.53,90.4]
[1750955767261,0.28432314,142.58,142.53,90.4]
[1750955767752,0.28432314,142.58,142.53,1.12]
[1750955768460,5.48510667,142.58,142.53,1.12]
[1750955768659,0.28432314,142.58,142.53,1.12]
[1750955768863,5.48510667,142.58,142.53,1.12]
[1750955769073,0.28432314,142.58,142.53,1.12]
[1750955769288,5.48510667,142.58,142.53,1.12]
[1750955769472,12.49876359,142.58,142.53,1.12]
[1750955769673,0.28432314,142.58,142.53,1.12]
[1750955769971,5.48510667,142.58,142.53,1.12]
[1750955771384,5.20078353,142.57,142.53,1.12]
[1750955773288,0.28432314,142.55,142.53,1.12]
[1750955776077,0.28432314,142.57,142.53,1.12]
[1750955776272,5.20078353,142.56,142.53,1.12]
[1750955777265,5.20078353,142.56,142.53,90.4]
[1750955777465,5.20078353,142.55,142.53,90.4]
[1750955777665,5.20078353,142.56,142.53,90.4]
[1750955777881,5.20078353,142.55,142.53,90.4]
[1750955778074,5.20078353,142.56,142.53,90.4]
[1750955778280,5.20078353,142.55,142.53,90.4]
[1750955778585,5.20078353,142.56,142.53,90.4]
[1750955778789,5.20078353,142.55,142.53,90.4]
[1750955779087,5.20078353,142.56,142.53,90.4]
[1750955779296,5.20078353,142.55,142.53,90.4]
[1750955779469,5.20078353,142.56,142.53,90.4]
[1750955779668,5.20078353,142.55,142.53,90.4]
[1750955779986,5.20078353,142.56,142.53,90.4]
[1750955780187,5.20078353,142.55,142.53,90.4]
[1750955780386,5.20078353,142.56,142.53,90.4]
[1750955780585,5.20078353,142.55,142.53,90.4]
[1750955780784,0.28432314,142.57,142.53,90.4]
[1750955780785,5.20078353,142.56,142.53,90.4]
[1750955780987,5.20078353,142.55,142.53,90.4]
[1750955781298,0.28432314,142.55,142.53,90.4]
[1750955781490,5.48510667,142.55,142.53,90.4]
[1750955781694,0.28432314,142.55,142.53,90.4]
[1750955782192,5.48510667,142.55,142.53,90.4]
[1750955782394,0.28432314,142.55,142.53,90.4]
[1750955782894,5.20078353,142.55,142.53,1.12]
[1750955783092,5.20078353,142.57,142.54,6.7781837]
[1750955783298,13.54245078,142.6,142.53,1.12]
[1750955783299,0.28432314,142.58,142.53,7.8981837]
[1750955783504,5.20078353,142.57,142.54,6.7781837]
[1750955783795,5.20078353,142.57,142.55,6.7781837]
[1750955784198,5.20078353,142.6,142.56,6.7781837]
[1750955784402,5.3429451,142.59,142.57,6.7781837]
[1750955784570,5.20078353,142.58,142.56,6.7781837]
[1750955784895,5.20078353,142.61,142.56,6.7781837]
[1750955785199,0.28432314,142.59,142.56,6.7781837]
[1750955785489,5.20078353,142.58,142.56,6.7781837]
[1750955786485,0.28432314,142.59,142.56,6.7781837]
[1750955786698,5.20078353,142.58,142.55,19.3942837]
[1750955787094,5.20078353,142.58,142.56,6.7781837]
[1750955787294,0.28432314,142.59,142.56,6.7781837]
[1750955787680,5.48510667,142.59,142.56,6.7781837]
[1750955787877,0.28432314,142.59,142.56,6.7781837]
[1750955788279,5.48510667,142.59,142.56,6.7781837]
[1750955788501,0.28432314,142.59,142.56,6.7781837]
[1750955788994,5.48510667,142.59,142.56,6.7781837]
[1750955789186,0.28432314,142.59,142.56,96.0581837]
[1750955789589,5.48510667,142.59,142.56,96.0581837]
[1750955789801,0.28432314,142.59,142.56,96.0581837]
[1750955790190,5.48510667,142.59,142.56,96.0581837]
[1750955790390,0.28432314,142.59,142.56,96.0581837]
[1750955790797,5.48510667,142.59,142.56,96.0581837]
[1750955791006,0.28432314,142.59,142.56,96.0581837]
[1750955791507,5.48510667,142.59,142.56,96.0581837]
[1750955791688,0.28432314,142.59,142.56,96.0581837]
[1750955792187,5.48510667,142.59,142.56,96.0581837]
[1750955792507,0.28432314,142.59,142.56,96.0581837]
[1750955792990,5.48510667,142.59,142.56,96.0581837]
[1750955793192,0.28432314,142.59,142.56,96.0581837]
[1750955793695,5.48510667,142.59,142.56,96.0581837]
[1750955793888,0.28432314,142.59,142.56,96.0581837]
[1750955794084,0.28432314,142.59,142.56,89.28]
[1750955794288,5.20078353,142.58,142.56,89.28]
[1750955794510,0.28432314,142.59,142.56,89.28]
[1750955794805,0.28432314,142.57,142.55,95.52]
[1750955795005,5.48510667,142.56,142.55,6.24]
[1750955795394,5.48510667,142.56,142.53,1.12]
[1750955795395,0.28432314,142.56,142.53,1.12]
[1750955795582,5.48510667,142.55,142.53,0.02]
[1750955795783,5.20078353,142.54,142.53,0.02]
[1750955803811,5.48510667,142.54,142.53,0.02]
[1750955803990,12.50068124,142.54,142.53,0.02]
[1750955804313,37.82204215,142.54,142.53,0.02]
[1750955804515,39.45844215,142.54,142.53,0.02]
[1750955804829,19.07613357,142.53,142.52,0.02]
[1750955805116,37.81640858,142.53,142.52,0.02]
[1750955807496,31.29298389,142.53,142.52,0.02]
[1750955807713,37.81640858,142.53,142.52,0.02]
[1750955807907,55.35657556,142.53,142.48,0.02]
[1750955808109,25.59955826,142.51,142.48,0.02]
[1750955808318,19.07613357,142.49,142.48,0.02]
[1750955808614,25.9325171,142.49,142.48,0.02]
[1750955808795,32.45594179,142.49,142.48,0.02]
[1750955808994,30.80034179,142.49,142.48,0.02]
[1750955809208,24.2769171,142.49,142.48,0.02]
[1750955809594,5.48510667,142.49,142.48,0.02]
[1750955809797,0.28432314,142.49,142.48,0.02]
[1750955810705,0.14216157,142.49,142.48,0.02]
[1750955811102,0.28432314,142.49,142.48,0.02]
[1750955816106,0.28432314,142.49,142.48,0.02]
[1750955821331,28.8,142.52,142.48,6.7981837]
[1750955821531,28.8,142.54,142.49,6.7781837]
[1750955821829,5.18659139,142.55,142.49,6.7781837]
[1750955822038,28.8,142.54,142.49,7.8781837]
[1750955822339,0.28432314,142.53,142.49,7.8781837]
[1750955823035,28.8,142.54,142.49,7.8781837]
[1750955823212,0.28432314,142.53,142.49,7.8781837]
[1750955823834,0.14216157,142.53,142.49,7.8781837]
[1750955824347,0.28432314,142.53,142.49,7.8781837]
[1750955824635,0.28432314,142.53,142.49,1.1]
[1750955825742,0.28432314,142.53,142.49,7.8781837]
[1750955826038,0.14216157,142.53,142.49,7.8781837]
[1750955827540,0.28432314,142.54,142.51,6.7781837]
[1750955827759,0.14216157,142.54,142.52,6.7781837]
[1750955829533,0.14216157,142.56,142.5,13.2734837]
[1750955831436,0.14216157,142.56,142.5,6.4953]
[1750955831642,0.14216157,142.55,142.5,13.2734837]
[1750955832036,0.14216157,142.55,142.49,7.8781837]
[1750955832649,0.14216157,142.55,142.49,1.1]
[1750955834022,0.14216157,142.55,142.49,7.8781837]
[1750955835033,0.28432314,142.54,142.49,7.8781837]
[1750955835625,0.28432314,142.54,142.49,1.1]
[1750955835941,7.30000378,142.54,142.49,1.1]
[1750955837643,12.48677981,142.54,142.49,1.1]
[1750955838162,0.14216157,142.53,142.49,1.1]
[1750955838463,0.28432314,142.5,142.48,0.02]
[1750955838626,5.47109917,142.5,142.48,0.02]
[1750955839433,5.47109917,142.49,142.48,0.02]
[1750955839830,0.28432314,142.49,142.48,0.02]